fUST/lending_fUST_20250407
["ID","MTS","AMOUNT","RATE_DAILY","PERIOD"]
[357288384,1743981040564,-151.0,0.00046192,120]
[357288386,1743981040574,-151.0,0.00046192,120]
[357288388,1743981040583,-151.0,0.00046192,120]
[357288390,1743981040593,-151.0,0.00046192,120]
[357288392,1743981040603,-151.493971,0.00046192,120]
[357288394,1743981040612,-151.0,0.00046192,120]
[357288396,1743981040627,-151.0,0.00046192,120]
[357288398,1743981040637,-151.0,0.00046192,120]
[357288400,1743981040646,-151.0,0.00046192,120]
[357288402,1743981040656,-151.0,0.00046192,120]
[357288404,1743981040667,-151.0,0.00046192,120]
[357288406,1743981040677,-191.992574,0.00046192,120]
[357288408,1743981040688,-151.0,0.00046192,120]
[357288410,1743981040698,-151.0,0.00046192,120]
[357288412,1743981040709,-151.0,0.00046192,120]
[357288414,1743981040719,-151.0,0.00046192,120]
[357288416,1743981040728,-151.0,0.00046192,120]
[357288418,1743981040738,-151.0,0.00046192,120]
[357288420,1743981040748,-151.0,0.00046192,120]
[357288422,1743981040758,-151.0,0.00046192,120]
[357288424,1743981040768,-151.0,0.00046192,120]
[357288426,1743981040777,-151.0,0.00046192,120]
[357288428,1743981040788,-151.0,0.00046192,120]
[357288430,1743981040798,-151.0,0.00046192,120]
[357288432,1743981040808,-151.0,0.00046192,120]
[357288434,1743981040817,-153.549782,0.00046192,120]
[357288436,1743981040827,-151.0,0.00046192,120]
[357288438,1743981040837,-151.0,0.00046192,120]
[357288440,1743981040846,-38786.42708388,0.00046192,20]
[357288442,1743981040860,-1589.0,0.00046192,3]
[357288444,1743981040872,-1773.69451612,0.00046192,3]
[357288446,1743981040882,-750924.85174494,0.00046192,20]
[357288454,1743981040948,-1000.01669927,0.00046192,20]
[357288456,1743981040959,-77999.99999838,0.00046192,20]
[357288458,1743981040970,-638.09155239,0.00046192,20]
[357288461,1743981040982,-2330.36602947,0.00046192,20]
[357288463,1743981040993,-708.66574214,0.00046192,20]
[357288577,1743981042991,-1156.94190634,0.0004297,10]
[357288578,1743981043190,-17429.09693601,0.0004297,10]
[357288725,1743981045981,-403.9115668,0.00046192,120]
[357288726,1743981045993,-682.84346821,0.00046192,120]
[357288727,1743981046006,-456.71549499,0.00046192,120]
[357288728,1743981046015,-1543.47053,0.00046192,120]
[357288729,1743981046025,-1543.47053,0.00046192,120]
[357288730,1743981046035,-1543.47053,0.00046192,120]
[357288731,1743981046045,-1543.47053,0.00046192,120]
[357288732,1743981046054,-1543.47053,0.00046192,120]
[357288733,1743981046063,-79.34137164,0.00046192,120]
[357288734,1743981046075,-664.97811972,0.00046192,120]
[357288735,1743981046087,-799.15103864,0.00046192,120]
[357288736,1743981046097,-1543.47053,0.00046192,120]
[357288737,1743981046106,-8806.60777666,0.00046192,20]
[357288740,1743981046126,-1543.47053,0.00046192,120]
[357288742,1743981046136,-6192.73898779,0.00046192,20]
[357288779,1743981099005,294.39740159,0.00023,30]
[357288780,1743981099891,-600.0,0.00023,30]
[357288781,1743981109321,2298.60259841,0.00022,30]
[357288782,1743981157702,-500.0,0.000231,2]
[357288792,1743981464618,-218.89937621,0.00023169,2]
[357288797,1743982039109,-2454.87422898,0.00023591,2]
[357288798,1743982054154,-7703.31189612,0.00023591,2]
[357288802,1743982090776,-181.10157079,0.00019977,2]
[357288803,1743982100590,640.69661884,0.000125,2]
[357288830,1743982154091,-12576.78249395,0.00019977,2]
[357288831,1743982154115,-14741.8138749,0.00023591,2]
[357288832,1743982154140,-1600.77294223,0.000239,5]
[357288833,1743982154162,-500.0,0.00023973,2]
[357288834,1743982154184,-591.20069898,0.00023973,2]
[357288835,1743982154206,-500.0,0.00023973,2]
[357288836,1743982154228,-500.0,0.00023973,2]
[357288837,1743982154251,-500.0,0.00023973,2]
[357288838,1743982154273,-500.0,0.00023973,2]
[357288839,1743982154297,-7391.32443447,0.00023973,2]
[357288840,1743982154319,-500.0,0.00023973,2]
[357288841,1743982154342,-500.69267219,0.00023973,2]
[357288842,1743982154364,-500.0,0.00023973,2]
[357288843,1743982154385,-500.0,0.00023973,2]
[357288844,1743982154407,-500.0,0.00023973,2]
[357288845,1743982154428,-500.0,0.00023973,2]
[357288846,1743982154449,-500.0,0.00023973,2]
[357288847,1743982154471,-500.0,0.00023973,2]
[357288848,1743982154713,-500.0,0.00023973,2]
[357288849,1743982154736,-500.0,0.00023973,2]
[357288850,1743982154758,-151.0,0.00023976,2]
[357288851,1743982154779,-151.0,0.00023976,2]
[357288852,1743982154804,-278.77393381,0.00023976,2]
[357288853,1743982154827,-200.0,0.00023976,2]
[357288854,1743982154849,-349.62287072,0.00023977,2]
[357288855,1743982154872,-500.0,0.00023989,2]
[357288856,1743982154894,-501.42855796,0.00023989,2]
[357288857,1743982154917,-533.34742913,0.00023989,2]
[357288858,1743982154938,-243.078738,0.00023989,2]
[357288859,1743982154964,-500.0,0.00023989,2]
[357288860,1743982154990,-500.0,0.00023989,2]
[357288861,1743982155013,-500.0,0.00023989,2]
[357288862,1743982155039,-500.0,0.00023989,2]
[357288863,1743982155068,-359.56299544,0.00023989,2]
[357288864,1743982155092,-269764.24003787,0.0002399,2]
[357288865,1743982155114,-546.28499177,0.00024,2]
[357288866,1743982155135,-152.0,0.00024191,2]
[357288867,1743982155159,-500.0,0.00024199,2]
[357288868,1743982155180,-192.0,0.00024735,2]
[357288869,1743982155204,-1600.77294199,0.00024762,5]
[357288870,1743982155224,-274.22309216,0.00024873,2]
[357288871,1743982155247,-500.0,0.00024873,2]
[357288872,1743982155269,-500.0,0.00024873,2]
[357288873,1743982155289,-500.0,0.00024873,2]
[357288874,1743982155312,-500.0,0.00024873,2]
[357288875,1743982155333,-500.0,0.00024873,2]
[357288876,1743982155355,-73618.87756396,0.00024899,2]
[357288877,1743982155378,-30888.29713047,0.000249,2]
[357288878,1743982161157,-171.58183737,0.00023973,2]
[357288945,1743982238475,-365.3450615,0.00023973,2]
[357288946,1743982238486,-500.0,0.00023973,2]
[357288947,1743982238496,-151.0,0.00023976,2]
[357288948,1743982238506,-151.0,0.00024524,2]
[357288949,1743982238516,-500.0,0.00024873,2]
[357288950,1743982238526,-500.0,0.00024873,2]
[357288951,1743982238536,-923.24620573,0.000249,2]
[357288952,1743982238547,-6666.37868802,0.000249,2]
[357288953,1743982238560,-5592.01312068,0.000249,2]
[357288955,1743982238569,-21429.81525818,0.00025,2]
[357288957,1743982238579,-1206.273585,0.00025,2]
[357288959,1743982238589,-240.5601574,0.00025072,2]
[357288961,1743982238600,-706.28251308,0.00025127,2]
[357288963,1743982238613,-500.0,0.00025127,2]
[357288965,1743982238623,-500.0,0.00025371,2]
[357288967,1743982238632,-691.63158198,0.00025624,6]
[357288969,1743982238650,-909.14136001,0.00025624,6]
[357288972,1743982238660,-554.6436116,0.00025625,2]
[357288974,1743982238671,-500.0,0.00025973,2]
[357288976,1743982238681,-500.0,0.00025973,2]
[357288978,1743982238691,-206.6181106,0.00025999,2]
[357288979,1743982238700,-82916.97337549,0.00026,30]
[357288982,1743982238711,-1600.77294199,0.00026486,6]
[357288985,1743982238721,-6584.99315984,0.00027,2]
[357288987,1743982238731,-500.0,0.00027322,2]
[357288988,1743982238740,-1600.77294199,0.00027348,7]
[357288990,1743982238750,-500.0,0.00027397,5]
[357288992,1743982238759,-1600.77294199,0.0002821,7]
[357288994,1743982238769,-500.0,0.00028797,2]
[357288996,1743982238779,-160.0,0.00028914,2]
[357288998,1743982238788,-500.0,0.00028972,2]
[357289000,1743982238798,-350.99999057,0.00028972,2]
[357289002,1743982238808,-362.19133297,0.00028973,5]
[357289004,1743982238818,-500.0,0.00028973,5]
[357289006,1743982238828,-505.40022197,0.00028973,5]
[357289008,1743982238838,-500.0,0.00028973,5]
[357289010,1743982238848,-500.0,0.00028973,5]
[357289012,1743982238860,-500.0,0.00028973,5]
[357289014,1743982238871,-500.01958862,0.00028973,5]
[357289017,1743982238881,-500.0,0.00028973,5]
[357289018,1743982238890,-500.0,0.00028973,5]
[357289020,1743982238900,-500.0,0.00028973,5]
[357289023,1743982238910,-12591.4100414,0.0002899,2]
[357289024,1743982238920,-23994.01092138,0.00029,7]
[357289025,1743982238931,-3223.58271092,0.00029,7]
[357289026,1743982238941,-23994.01092138,0.00029,7]
[357289027,1743982238952,-3223.58271092,0.00029,7]
[357289028,1743982238962,-160.0,0.00029,7]
[357289029,1743982238972,-419.28457398,0.00029,7]
[357289030,1743982238982,-12525.30748765,0.00029,7]
[357289031,1743982238993,-833.53177531,0.00029,10]
[357289032,1743982239003,-677.08333333,0.00029,7]
[357289033,1743982239013,-160.0,0.00029004,2]
[357289034,1743982239023,-419.28457398,0.00029004,2]
[357289035,1743982239033,-12525.30748765,0.00029004,2]
[357289036,1743982239044,-677.08333333,0.00029004,2]
[357289037,1743982239055,-160.0,0.00029004,2]
[357289038,1743982239065,-1600.77294199,0.00029072,8]
[357289039,1743982239075,-500.0,0.000293,2]
[357289040,1743982239085,-500.0,0.00029323,2]
[357289041,1743982239095,-179.08614184,0.00029452,5]
[357289042,1743982239105,-1000.0,0.00029452,2]
[357289043,1743982239120,-1000.0,0.00029452,5]
[357289044,1743982239130,-1000.0,0.00029452,5]
[357289045,1743982239140,-1000.0,0.00029452,5]
[357289046,1743982239150,-1000.0,0.00029452,5]
[357289047,1743982239159,-1000.0,0.00029452,5]
[357289048,1743982239170,-500.0,0.00029556,2]
[357289049,1743982239184,-3537.44352993,0.000299,120]
[357289050,1743982239194,-1600.77294199,0.00029934,9]
[357289051,1743982239204,-13400.0,0.0003,4]
[357289052,1743982239214,-933.06745951,0.0003,2]
[357289053,1743982239224,-500.0,0.00030216,7]
[357289054,1743982239235,-500.0,0.00030352,5]
[357289055,1743982239245,-500.0,0.00030352,5]
[357289056,1743982239255,-1600.77294199,0.00030797,9]
[357289057,1743982239265,-500.0,0.00030885,7]
[357289058,1743982239275,-1600.77294199,0.00031659,10]
[357289059,1743982239286,-500.0,0.00031973,7]
[357289060,1743982239296,-1600.77294199,0.00032521,10]
[357289061,1743982239307,-1000.0,0.00032877,5]
[357289062,1743982239318,-1600.77294199,0.00033383,11]
[357289063,1743982239328,-1000.0,0.00034,2]
[357289064,1743982239339,-1600.77294199,0.00034245,11]
[357289065,1743982239351,-500.0,0.00034452,5]
[357289066,1743982239362,-1000.0,0.00034452,5]
[357289067,1743982239372,-865.86838408,0.00034452,5]
[357289068,1743982239382,-500.0,0.00034779,7]
[357289069,1743982239392,-18042.43982678,0.0003499,30]
[357289070,1743982239402,-4896.12111245,0.00035,120]
[357289071,1743982239412,-234062.81727285,0.00035,2]
[357289072,1743982239423,-1600.77294199,0.00035107,12]
[357289073,1743982239433,-500.0,0.00035174,7]
[357289074,1743982239443,-618.90558042,0.00035616,7]
[357289075,1743982239454,-1000.0,0.0003589,2]
[357289076,1743982239464,-1600.77294199,0.00035969,12]
[357289077,1743982239474,-6295.7050207,0.0003619,3]
[357289078,1743982239484,-500.0,0.00036423,7]
[357289079,1743982239494,-1600.77294199,0.00036831,13]
[357289080,1743982239504,-500.0,0.00037328,7]
[357289081,1743982239515,-1012.29840226,0.000375,2]
[357289083,1743982239525,-1600.77294199,0.00037693,14]
[357289084,1743982239535,-607.697,0.00037895,50]
[357289085,1743982239546,-25182.8200828,0.0003799,3]
[357289086,1743982239556,-200000.0,0.00038,2]
[357289087,1743982239566,-1500.0,0.00038356,5]
[357289088,1743982239575,-1600.77294199,0.00038555,14]
[357289089,1743982239585,-500.0,0.00038714,7]
[357289090,1743982239596,-944.5,0.00038717,30]
[357289091,1743982239610,-500.0,0.00038782,7]
[357289093,1743982239619,-153.0,0.00038804,31]
[357289094,1743982239630,-153.0,0.00038804,31]
[357289095,1743982239641,-153.0,0.00038804,31]
[357289096,1743982239651,-2597.4924,0.00039,120]
[357289097,1743982239662,-555.541,0.00039,120]
[357289098,1743982239672,-1747.88875037,0.00039,120]
[357289099,1743982239683,-420.47256183,0.00039155,6]
[357289100,1743982239695,-1600.77294199,0.00039417,15]
[357289101,1743982239705,-1500.0,0.00039471,2]
[357289102,1743982239715,-1500.0,0.00039471,5]
[357289103,1743982239725,-1500.0,0.00039471,5]
[357289104,1743982239736,-1500.0,0.00039471,5]
[357289105,1743982239746,-1500.0,0.00039471,5]
[357289107,1743982239756,-1500.0,0.00039471,5]
[357289109,1743982239766,-2975.0,0.0003951,2]
[357289111,1743982239776,-3705.72,0.000399,2]
[357289112,1743982239786,-6295.7050207,0.0003998,3]
[357289113,1743982239797,-160.0,0.0003999,3]
[357289114,1743982239806,-160.0,0.0003999,3]
[357289115,1743982239816,-419.28457398,0.0003999,3]
[357289116,1743982239825,-12525.30748765,0.0003999,3]
[357289117,1743982239834,-31478.5251035,0.0003999,3]
[357289118,1743982239844,-677.08333333,0.0003999,3]
[357289119,1743982239853,-320885.65228262,0.0004,60]
[357289120,1743982239864,-14838.04182596,0.0004,120]
[357289121,1743982239874,-2429.92911583,0.0004,120]
[357289122,1743982239883,-1600.77294199,0.00040279,15]
[357289123,1743982239893,-1600.77294199,0.00041141,16]
[357289124,1743982239903,-500.0,0.00041164,30]
[357289125,1743982239912,-1000.0,0.00041211,120]
[357289126,1743982239922,-500.0,0.00041531,30]
[357289127,1743982239931,-1600.77294199,0.00042003,16]
[357289128,1743982239941,-500.0,0.00042455,30]
[357289129,1743982239950,-151.0,0.000426,11]
[357289130,1743982239960,-1600.77294199,0.00042866,17]
[357289131,1743982239970,-406.76475864,0.00042973,10]
[357289132,1743982239979,-498.82326477,0.00042973,10]
[357289133,1743982239989,-22001.15346774,0.00042998,2]
[357289134,1743982239998,-23994.01092138,0.00043,7]
[357289135,1743982240008,-3223.58271092,0.00043,7]
[357289136,1743982240017,-23994.01092138,0.00043,7]
[357289138,1743982240026,-3223.58271092,0.00043,7]
[357289139,1743982240036,-267.92396624,0.00043,30]
[357289140,1743982240045,-172.48471303,0.00043,120]
[357289141,1743982240054,-1600.77294199,0.00043728,18]
[357289142,1743982240064,-533.16179593,0.00043835,120]
[357289143,1743982240074,-1000.0,0.00043836,120]
[357289144,1743982240086,-317.728,0.00043836,120]
[357289145,1743982240096,-2000.0,0.00043836,10]
[357289147,1743982240106,-1000.0,0.00044,120]
[357289148,1743982240117,-1000.0,0.00044,120]
[357289149,1743982240127,-500.0,0.00044004,30]
[357289150,1743982240136,-200.0,0.00044072,14]
[357289151,1743982240146,-200.0,0.00044072,14]
[357289152,1743982240155,-542.0,0.00044242,2]
[357289153,1743982240165,-1478.0,0.00044242,2]
[357289154,1743982240174,-2254.0,0.00044242,2]
[357289156,1743982240186,-451.851,0.00044242,2]
[357289157,1743982240196,-151.1,0.00044242,2]
[357289159,1743982240206,-1500.0,0.00044471,10]
[357289161,1743982240216,-600.0,0.00044536,2]
[357289163,1743982240225,-1600.77294199,0.0004459,18]
[357289164,1743982240234,-758.49065218,0.00044843,120]
[357289165,1743982240245,-1000.0,0.00044932,120]
[357289166,1743982240255,-1000.0,0.00044932,120]
[357289167,1743982240264,-758.49065218,0.00044943,120]
[357289168,1743982240274,-215.44150482,0.00045,120]
[357289169,1743982240283,-1000.0,0.00045,2]
[357289170,1743982240293,-1000.0,0.00045,120]
[357289171,1743982240302,-1000.0,0.00045,120]
[357289172,1743982240311,-1000.0,0.00045,120]
[357289173,1743982240325,-1000.0,0.00045,120]
[357289174,1743982240334,-945.0,0.00045,120]
[357289175,1743982240344,-1000.0,0.00045,120]
[357289176,1743982240354,-161.0,0.00045,90]
[357289177,1743982240367,-5455.0068261,0.00045,120]
[357289178,1743982240376,-235869.48374716,0.00045,120]
[357289180,1743982240398,-1539.99999999,0.00045,120]
[357289182,1743982240414,-4160.93363675,0.00045,120]
[357289184,1743982240427,-99379.3732661,0.00045,120]
[357289185,1743982240437,-419.28457398,0.00045,120]
[357289186,1743982240447,-200000.0,0.00045,2]
[357289187,1743982240457,-45602.97821824,0.00045,120]
[357289188,1743982240467,-200000.0,0.00045,2]
[357289189,1743982240477,-331.5734442,0.00045,120]
[357289190,1743982240487,-159.79785156,0.00045,120]
[357289191,1743982240498,-179.31099826,0.00045,120]
[357289192,1743982240507,-853.46934823,0.00045,20]
[357289193,1743982240517,-22999.999999,0.00045,90]
[357289194,1743982240526,-431.43068903,0.00045,2]
[357289195,1743982240535,-199.999999,0.00045,2]
[357289196,1743982240545,-152.0,0.00045,90]
[357289197,1743982240555,-2506.7749038,0.00045,4]
[357289198,1743982240565,-167.0,0.00045,90]
[357289199,1743982240574,-600.0,0.00045,2]
[357289200,1743982240584,-758.49065218,0.00045043,120]
[357289201,1743982240594,-758.49065218,0.00045143,120]
[357289202,1743982240603,-160.0,0.00045205,120]
[357289203,1743982240617,-500.0,0.00045205,7]
[357289204,1743982240626,-13821.54,0.00045205,120]
[357289205,1743982240635,-151.850274,0.00045205,120]
[357289206,1743982240645,-151.0,0.00045205,120]
[357289207,1743982240655,-151.0,0.00045205,120]
[357289208,1743982240665,-758.49065218,0.00045243,120]
[357289209,1743982240674,-500.0,0.00045324,30]
[357289210,1743982240686,-758.49065218,0.00045343,120]
[357289211,1743982240696,-500.0,0.00045392,120]
[357289212,1743982240706,-330.66,0.00045392,120]
[357289213,1743982240716,-511.0,0.000454,120]
[357289214,1743982240726,-2200.0,0.00045424,14]
[357289215,1743982240736,-758.49065218,0.00045443,120]
[357289216,1743982240746,-1600.77294199,0.00045452,19]
[357289217,1743982240756,-500.0,0.00045479,9]
[357289218,1743982240766,-758.49065218,0.00045543,120]
[357289219,1743982240776,-781.10062379,0.00045561,30]
[357289220,1743982240787,-327.938765,0.00045585,30]
[357289221,1743982240797,-153.0,0.00045585,30]
[357289222,1743982240807,-153.0,0.00045585,30]
[357289223,1743982240818,-153.0,0.00045585,30]
[357289224,1743982240828,-153.0,0.00045585,30]
[357289225,1743982240838,-163.6606897,0.00045585,30]
[357289226,1743982240848,-13821.54,0.00045616,120]
[357289227,1743982240858,-758.49065218,0.00045643,120]
[357289228,1743982240868,-3600.00000045,0.0004573,2]
[357289229,1743982240878,-520.57500007,0.0004573,2]
[357289230,1743982240888,-21033.95161618,0.0004573,2]
[357289231,1743982240898,-1000.0,0.0004573,2]
[357289232,1743982240909,-758.49065218,0.00045743,120]
[357289233,1743982240919,-214.03725,0.00045745,120]
[357289234,1743982240928,-500.0,0.00045753,11]
[357289235,1743982240938,-763.65,0.000458,2]
[357289236,1743982240947,-758.49065218,0.00045843,120]
[357289237,1743982240957,-758.49065218,0.00045943,120]
[357289238,1743982240967,-1000.0,0.00046,120]
[357289239,1743982240976,-5000.0,0.00046,120]
[357289240,1743982240986,-10000.0,0.00046,120]
[357289241,1743982240996,-4263.58,0.00046025,120]
[357289242,1743982241006,-500.0,0.00046027,13]
[357289243,1743982241016,-13821.54,0.00046027,120]
[357289244,1743982241027,-758.49065218,0.00046043,120]
[357289245,1743982241232,-10000.0,0.0004605,120]
[357289246,1743982241243,-10000.0,0.00046075,120]
[357289247,1743982241254,-2677.30421407,0.0004608,90]
[357289248,1743982241264,-10000.0,0.000461,120]
[357289249,1743982241275,-10000.0,0.00046125,120]
[357289250,1743982241285,-758.49065218,0.00046143,120]
[357289251,1743982241295,-151.0,0.00046192,120]
[357289252,1743982241304,-151.0,0.00046192,120]
[357289253,1743982241314,-151.0,0.00046192,120]
[357289254,1743982241324,-151.0,0.00046192,120]
[357289255,1743982241334,-175.36313937,0.00046199,2]
[357289256,1743982241343,-151.0,0.00046199,2]
[357289257,1743982241353,-150.0,0.000462,120]
[357289258,1743982241365,-160.0,0.000462,10]
[357289259,1743982241375,-165.25,0.000462,39]
[357289260,1743982241384,-165.25,0.000462,39]
[357289261,1743982241395,-165.25,0.000462,39]
[357289262,1743982241404,-165.25,0.000462,39]
[357289263,1743982241414,-165.25,0.000462,39]
[357289264,1743982241423,-165.25,0.000462,39]
[357289265,1743982241434,-1881.568456,0.000462,50]
[357289266,1743982241443,-168.533343,0.00046213,120]
[357289267,1743982241453,-151.0,0.00046213,120]
[357289268,1743982241463,-151.0,0.00046213,120]
[357289269,1743982241473,-151.0,0.00046213,120]
[357289270,1743982241483,-151.0,0.00046213,120]
[357289271,1743982241493,-151.0,0.00046213,120]
[357289272,1743982241503,-151.0,0.00046213,120]
[357289273,1743982241512,-151.0,0.00046213,120]
[357289274,1743982241522,-151.0,0.00046213,120]
[357289275,1743982241532,-151.0,0.00046213,120]
[357289276,1743982241542,-151.0,0.00046213,120]
[357289277,1743982241552,-151.0,0.00046213,120]
[357289278,1743982241563,-177.39951,0.00046213,120]
[357289279,1743982241574,-151.0,0.00046213,120]
[357289280,1743982241584,-151.0,0.00046213,120]
[357289281,1743982241594,-299.534364,0.00046213,120]
[357289282,1743982241613,-151.0,0.00046213,120]
[357289283,1743982241623,-151.0,0.00046213,120]
[357289284,1743982241633,-151.0,0.00046213,120]
[357289285,1743982241644,-151.0,0.00046213,120]
[357289286,1743982241654,-758.49065218,0.00046243,120]
[357289287,1743982241663,-54452.68072723,0.00046254,61]
[357289288,1743982241673,-151.0,0.00046254,120]
[357289289,1743982241685,-151.0,0.00046254,120]
[357289290,1743982241694,-151.0,0.00046254,120]
[357289291,1743982241705,-151.0,0.00046254,120]
[357289292,1743982241715,-153.438206,0.00046254,120]
[357289293,1743982241725,-151.0,0.00046254,120]
[357289294,1743982241735,-151.0,0.00046254,120]
[357289295,1743982241745,-151.0,0.00046254,120]
[357289296,1743982241754,-151.0,0.00046254,120]
[357289297,1743982241764,-151.0,0.00046254,120]
[357289298,1743982241774,-151.0,0.00046254,120]
[357289299,1743982241783,-151.0,0.00046254,120]
[357289300,1743982241793,-151.0,0.00046254,120]
[357289301,1743982241803,-151.0,0.00046254,120]
[357289302,1743982241813,-151.0,0.00046254,120]
[357289303,1743982241823,-151.0,0.00046254,120]
[357289304,1743982241833,-151.0,0.00046254,120]
[357289305,1743982241850,-151.0,0.00046254,120]
[357289306,1743982241867,-151.0,0.00046254,120]
[357289307,1743982241878,-151.0,0.00046254,120]
[357289308,1743982241888,-244.198794,0.00046254,120]
[357289309,1743982241898,-151.0,0.00046254,120]
[357289310,1743982241908,-151.0,0.00046254,120]
[357289311,1743982241919,-151.0,0.00046254,120]
[357289312,1743982241930,-151.0,0.00046254,120]
[357289313,1743982241940,-151.0,0.00046254,120]
[357289314,1743982241951,-172.934234,0.00046254,120]
[357289315,1743982241961,-172.934234,0.00046254,120]
[357289316,1743982241971,-172.934234,0.00046254,120]
[357289317,1743982241982,-172.934234,0.00046254,120]
[357289318,1743982241993,-172.934234,0.00046254,120]
[357289319,1743982242003,-172.934234,0.00046254,120]
[357289320,1743982242014,-151.0,0.00046254,110]
[357289321,1743982242024,-172.934234,0.00046254,120]
[357289322,1743982242035,-151.0,0.00046254,110]
[357289323,1743982242046,-172.934234,0.00046254,120]
[357289324,1743982242057,-172.934234,0.00046254,120]
[357289325,1743982242067,-172.934234,0.00046254,120]
[357289326,1743982242078,-172.934234,0.00046254,120]
[357289327,1743982242089,-172.934234,0.00046254,120]
[357289328,1743982242098,-172.934234,0.00046254,120]
[357289329,1743982242113,-172.934234,0.00046254,120]
[357289330,1743982242123,-172.934234,0.00046254,120]
[357289331,1743982242134,-172.934234,0.00046254,120]
[357289332,1743982242144,-172.934234,0.00046254,120]
[357289333,1743982242155,-172.934234,0.00046254,120]
[357289334,1743982242165,-172.934234,0.00046254,120]
[357289335,1743982242175,-172.934236,0.00046254,120]
[357289336,1743982242185,-151.493971,0.00046254,120]
[357289337,1743982242196,-1020.405518,0.00046254,120]
[357289338,1743982242206,-1020.405518,0.00046254,120]
[357289339,1743982242216,-1020.405518,0.00046254,120]
[357289340,1743982242226,-1020.405518,0.00046254,120]
[357289341,1743982242236,-1020.405518,0.00046254,120]
[357289342,1743982242246,-1020.405518,0.00046254,120]
[357289343,1743982242256,-1020.405518,0.00046254,120]
[357289344,1743982242267,-1020.405518,0.00046254,120]
[357289345,1743982242277,-1020.405518,0.00046254,120]
[357289346,1743982242287,-1020.405518,0.00046254,120]
[357289347,1743982242297,-1020.405518,0.00046254,120]
[357289348,1743982242307,-1020.405518,0.00046254,120]
[357289349,1743982242318,-1020.405518,0.00046254,120]
[357289350,1743982242329,-1020.405518,0.00046254,120]
[357289352,1743982242339,-1020.405518,0.00046254,120]
[357289353,1743982242350,-1020.405518,0.00046254,120]
[357289354,1743982242362,-1020.405518,0.00046254,120]
[357289355,1743982242372,-1020.405518,0.00046254,120]
[357289356,1743982242382,-1020.405518,0.00046254,120]
[357289357,1743982242393,-1020.405517,0.00046254,120]
[357289358,1743982242403,-151.0,0.00046254,120]
[357289359,1743982242413,-151.0,0.00046254,120]
[357289360,1743982242423,-151.0,0.00046254,120]
[357289361,1743982242433,-151.0,0.00046254,120]
[357289362,1743982242445,-151.0,0.00046254,120]
[357289363,1743982242455,-151.0,0.00046254,120]
[357289365,1743982242465,-151.0,0.00046254,120]
[357289366,1743982242475,-151.0,0.00046254,120]
[357289367,1743982242485,-151.0,0.00046254,120]
[357289368,1743982242495,-151.0,0.00046254,120]
[357289369,1743982242505,-151.275305,0.00046254,120]
[357289370,1743982242516,-208.300719,0.00046254,120]
[357289371,1743982242526,-151.0,0.00046254,120]
[357289372,1743982242536,-151.0,0.00046254,120]
[357289373,1743982242546,-151.0,0.00046254,120]
[357289374,1743982242556,-152.642814,0.00046254,120]
[357289375,1743982242566,-151.0,0.00046254,120]
[357289376,1743982242577,-151.0,0.00046254,120]
[357289377,1743982242587,-151.0,0.00046254,120]
[357289378,1743982242598,-151.0,0.00046254,120]
[357289379,1743982242613,-151.0,0.00046254,120]
[357289380,1743982242623,-151.0,0.00046254,120]
[357289381,1743982242634,-152.920768,0.00046254,120]
[357289382,1743982242645,-151.0,0.00046254,120]
[357289383,1743982242655,-151.0,0.00046254,120]
[357289384,1743982242664,-151.0,0.00046254,120]